fUSD/lending_fUSD_20240419
["ID","MTS","AMOUNT","RATE_DAILY","PERIOD"]
[322979850,1713556283293,-412.76667981,0.0001726,2]
[322979851,1713556283302,-1038.08,0.0001726,2]
[322979852,1713556283312,-500.0,0.0001726,2]
[322979853,1713556283320,-500.0,0.0001726,2]
[322979854,1713556283330,-1338.89,0.0001726,2]
[322979855,1713556283340,-966.77,0.0001726,2]
[322979856,1713556283349,-500.0,0.0001726,2]
[322979857,1713556283359,-500.0,0.0001726,2]
[322979858,1713556283368,-500.0,0.0001726,2]
[322979859,1713556283377,-500.0,0.0001726,2]
[322979860,1713556283387,-937.2,0.0001726,2]
[322979861,1713556283396,-500.0,0.0001726,2]
[322979862,1713556283406,-1000.62,0.0001726,2]
[322979863,1713556283415,-923.0,0.0001726,2]
[322979864,1713556283424,-500.0,0.0001726,2]
[322979865,1713556283433,-500.0,0.0001726,2]
[322979866,1713556283443,-1421.57,0.0001726,2]
[322979867,1713556283453,-500.0,0.0001726,2]
[322979868,1713556283462,-1225.98,0.0001726,2]
[322979869,1713556283472,-747.18,0.0001726,2]
[322979870,1713556283481,-500.0,0.0001726,2]
[322979871,1713556283491,-1304.87,0.0001726,2]
[322979872,1713556283501,-741.07,0.0001726,2]
[322979873,1713556283510,-942.09,0.0001726,2]
[322979874,1713556283520,-1721.59,0.0001726,2]
[322979875,1713556283529,-500.0,0.0001726,2]
[322979876,1713556283538,-500.0,0.0001726,2]
[322979877,1713556283547,-541.35,0.0001726,2]
[322979878,1713556283556,-500.0,0.0001726,2]
[322979879,1713556283565,-500.0,0.0001726,2]
[322979880,1713556283575,-500.0,0.0001726,2]
[322979881,1713556283584,-500.0,0.0001726,2]
[322979882,1713556283594,-500.0,0.0001726,2]
[322979883,1713556283603,-1128.5,0.0001726,2]
[322979884,1713556283613,-500.0,0.0001726,2]
[322979885,1713556283622,-563.34,0.0001726,2]
[322979886,1713556283632,-1167.97,0.0001726,2]
[322979887,1713556283642,-500.0,0.0001726,2]
[322979888,1713556283652,-590.35,0.0001726,2]
[322979889,1713556283662,-500.0,0.0001726,2]
[322979890,1713556283671,-500.0,0.0001726,2]
[322979891,1713556283681,-872.9,0.0001726,2]
[322979892,1713556283690,-889.5,0.0001726,2]
[322979893,1713556283700,-1626.23,0.0001726,2]
[322979894,1713556283710,-500.0,0.0001726,2]
[322979895,1713556283719,-645.91,0.0001726,2]
[322979896,1713556283729,-500.0,0.0001726,2]
[322979897,1713556283738,-1702.07,0.0001726,2]
[322979898,1713556283748,-1961.45,0.0001726,2]
[322979899,1713556283757,-500.0,0.0001726,2]
[322979900,1713556283766,-842.19,0.0001726,2]
[322979901,1713556283776,-500.0,0.0001726,2]
[322979902,1713556283785,-500.0,0.0001726,2]
[322979903,1713556283795,-500.0,0.0001726,2]
[322979904,1713556283804,-330.87204765,0.0001726,2]
[322979905,1713556283813,-500.0,0.0001726,2]
[322979906,1713556283822,-866.91,0.0001726,2]
[322979907,1713556283832,-500.0,0.0001726,2]
[322979908,1713556283842,-500.0,0.0001726,2]
[322979909,1713556283852,-818.38,0.0001726,2]
[322979910,1713556283862,-500.0,0.0001726,2]
[322979911,1713556283872,-788.31,0.0001726,2]
[322979912,1713556283881,-500.0,0.0001726,2]
[322979913,1713556283892,-500.0,0.0001726,2]
[322979914,1713556283902,-500.0,0.0001726,2]
[322979915,1713556283911,-1516.3,0.0001726,2]
[322979916,1713556283921,-1375.05,0.0001726,2]
[322979917,1713556283930,-1204.0,0.0001726,2]
[322979918,1713556283940,-500.0,0.0001726,2]
[322979919,1713556283949,-645.15,0.0001726,2]
[322979920,1713556283959,-500.0,0.0001726,2]
[322979921,1713556283968,-684.49,0.0001726,2]
[322979922,1713556283978,-500.0,0.0001726,2]
[322979923,1713556283988,-500.0,0.0001726,2]
[322979924,1713556283997,-1205.83,0.0001726,2]
[322979925,1713556284007,-500.0,0.0001726,2]
[322979926,1713556284017,-4282.22,0.0001726,2]
[322979927,1713556284026,-500.0,0.0001726,2]
[322979928,1713556284039,-500.0,0.0001726,2]
[322979929,1713556284049,-898.49,0.0001726,2]
[322979930,1713556284058,-500.0,0.0001726,2]
[322979931,1713556284068,-500.0,0.0001726,2]
[322979932,1713556284079,-1004.37,0.0001726,2]
[322979933,1713556284088,-716.09,0.0001726,2]
[322979934,1713556284097,-500.0,0.0001726,2]
[322979935,1713556284108,-500.0,0.0001726,2]
[322979936,1713556284117,-361.19354795,0.0001726,2]
[322979937,1713556284128,-776.03,0.0001726,2]
[322979938,1713556284138,-500.0,0.0001726,2]
[322979939,1713556284147,-1516.16,0.0001726,2]
[322979940,1713556284157,-643.01,0.0001726,2]
[322979941,1713556284167,-500.0,0.0001726,2]
[322979942,1713556284178,-2300.24,0.0001726,2]
[322979943,1713556284188,-500.0,0.0001726,2]
[322979944,1713556284198,-606.12,0.0001726,2]
[322979945,1713556284208,-1899.04,0.0001726,2]
[322979946,1713556284219,-500.0,0.0001726,2]
[322979947,1713556284229,-500.0,0.0001726,2]
[322979948,1713556284239,-537.38,0.0001726,2]
[322979949,1713556284248,-530.58,0.0001726,2]
[322979950,1713556284258,-695.72,0.0001726,2]
[322979951,1713556284267,-500.0,0.0001726,2]
[322979952,1713556284276,-500.0,0.0001726,2]
[322979953,1713556284286,-1653.34,0.0001726,2]
[322979954,1713556284295,-2483.47,0.0001726,2]
[322979955,1713556284305,-543.02,0.0001726,2]
[322979956,1713556284315,-1864.05,0.0001726,2]
[322979957,1713556284324,-500.0,0.0001726,2]
[322979958,1713556284334,-2143.92,0.0001726,2]
[322979959,1713556284345,-500.0,0.0001726,2]
[322979960,1713556284354,-500.0,0.0001726,2]
[322979961,1713556284363,-905.8,0.0001726,2]
[322979962,1713556284373,-531.11,0.0001726,2]
[322979963,1713556284383,-3074.52,0.0001726,2]
[322979964,1713556284392,-500.0,0.0001726,2]
[322979965,1713556284402,-500.0,0.0001726,2]
[322979966,1713556284411,-850.73,0.0001726,2]
[322979967,1713556284421,-500.0,0.0001726,2]
[322979968,1713556284430,-1338.48,0.0001726,2]
[322979969,1713556284441,-1186.01,0.0001726,2]
[322979970,1713556284451,-1346.4,0.0001726,2]
[322979971,1713556284461,-1759.63,0.0001726,2]
[322979972,1713556284470,-2553.62,0.0001726,2]
[322979973,1713556284480,-3249.65,0.0001726,2]
[322979974,1713556284489,-1187.18,0.0001726,2]
[322979975,1713556284499,-920.57,0.0001726,2]
[322979976,1713556284508,-500.0,0.0001726,2]
[322979977,1713556284518,-695.75,0.0001726,2]
[322979978,1713556284527,-965.89,0.0001726,2]
[322979979,1713556284536,-818.31,0.0001726,2]
[322979980,1713556284547,-659.77,0.0001726,2]
[322979981,1713556284556,-500.0,0.0001726,2]
[322979982,1713556284566,-886.34,0.0001726,2]
[322979983,1713556284575,-628.33,0.0001726,2]
[322979984,1713556284585,-1470.34,0.0001726,2]
[322979985,1713556284595,-500.0,0.0001726,2]
[322979986,1713556284605,-500.0,0.0001726,2]
[322979987,1713556284615,-500.0,0.0001726,2]
[322979988,1713556284624,-2281.01,0.0001726,2]
[322979989,1713556284634,-1317.65,0.0001726,2]
[322979990,1713556284644,-1072.8,0.0001726,2]
[322979991,1713556284653,-966.71,0.0001726,2]
[322979992,1713556284663,-500.0,0.0001726,2]
[322979993,1713556284672,-728.82,0.0001726,2]
[322979994,1713556284682,-607.5,0.0001726,2]
[322979995,1713556284692,-500.0,0.0001726,2]
[322979996,1713556284701,-7403.99422158,0.0001726,2]
[322979997,1713556284732,-974.08067741,0.0001726,2]
[322979998,1713556284743,-2350.75626598,0.0001726,2]
[322979999,1713556284774,-1341.6548711,0.0001726,2]
[322980000,1713556286159,-12094.8789858,0.00013905,2]
[322980001,1713556286320,-1067.5,0.00013905,2]
[322980002,1713556286710,-464.26619999,0.00013905,2]
[322980003,1713556287314,-594.6488,0.00013905,2]
[322980004,1713556287334,-422.49905659,0.00013905,2]
[322980005,1713556287346,-865.50893816,0.00013905,2]
[322980006,1713556287358,-446.76413443,0.00013905,2]
[322980007,1713556287370,-7943.93388503,0.00013905,2]
[322980008,1713556287381,-500.0,0.00016438,2]
[322980009,1713556287391,-500.0,0.00016438,2]
[322980010,1713556287401,-614.52,0.00016712,2]
[322980011,1713556287411,-500.0,0.00016712,2]
[322980012,1713556287421,-500.0,0.00016986,2]
[322980013,1713556287431,-500.0,0.00016986,2]
[322980014,1713556287442,-222.04450963,0.00017,2]
[322980015,1713556287452,-222.04450963,0.00017,2]
[322980016,1713556287461,-222.04450963,0.00017,2]
[322980017,1713556287471,-222.04450963,0.00017,2]
[322980018,1713556287481,-222.04450963,0.00017,2]
[322980019,1713556287490,-222.04450963,0.00017,2]
[322980020,1713556287500,-222.04450963,0.00017,2]
[322980021,1713556287510,-222.04450963,0.00017,2]
[322980022,1713556287519,-222.04450963,0.00017,2]
[322980023,1713556287529,-222.04450963,0.00017,2]
[322980024,1713556287538,-222.04450963,0.00017,2]
[322980025,1713556287548,-222.04450963,0.00017,2]
[322980026,1713556287558,-222.04450963,0.00017,2]
[322980027,1713556287568,-222.04450963,0.00017,2]
[322980028,1713556287578,-222.04450963,0.00017,2]
[322980029,1713556287587,-222.04450963,0.00017,2]
[322980030,1713556287598,-222.04450963,0.00017,2]
[322980031,1713556287608,-222.04450963,0.00017,2]
[322980032,1713556287618,-222.04450963,0.00017,2]
[322980033,1713556287627,-222.04450963,0.00017,2]
[322980034,1713556287637,-222.04450963,0.00017,2]
[322980035,1713556287646,-222.04450963,0.00017,2]
[322980036,1713556287656,-222.04450963,0.00017,2]
[322980037,1713556287665,-222.04450963,0.00017,2]
[322980038,1713556287675,-222.04450963,0.00017,2]
[322980039,1713556287685,-222.04450963,0.00017,2]
[322980040,1713556287695,-222.04450963,0.00017,2]
[322980041,1713556287705,-222.04450963,0.00017,2]
[322980042,1713556287714,-222.04450963,0.00017,2]
[322980043,1713556287724,-12806.22421166,0.0001726,2]
[322980044,1713556287743,-321.25185812,0.0001726,2]
[322980045,1713556288594,-967.19043138,0.00013904,2]
[322980046,1713556288603,-512.34206862,0.000159,2]
[322980047,1713556288669,-402.65793138,0.000159,2]
[322980048,1713556288678,-111.32206862,0.00016338,2]
[322980049,1713556290399,-1588.97285108,0.00013903,2]
[322980050,1713556293021,19431.09350024,0.00013902,2]
[322980051,1713556293531,2879.93364868,0.00013902,2]
[322980052,1713556295860,-16551.15985156,0.00013902,2]
[322980053,1713556333104,-1078.0,0.00014658,2]
[322980054,1713556338527,1051.63,0.00013874,2]
[322980055,1713556404225,26.37,0.0001305,2]
[322980056,1713556422195,-417.81739039,0.0001305,2]
[322980057,1713556462929,286.76358854,0.000125,2]
[322980059,1713556591394,-967.19043138,0.00014997,2]
[322980060,1713556591418,-19431.09350024,0.00014998,2]
[322980061,1713556639259,-962.90435706,0.00015,2]
[322980062,1713556639283,-155.0,0.00015,2]
[322980063,1713556639306,-178.51,0.00015277,2]
[322980064,1713556639329,-19076.755,0.00015282,2]
[322980065,1713556639351,-2065.97,0.00015282,2]
[322980066,1713556654413,-1056.81,0.00015291,2]
[322980067,1713556663165,-11527.9809392,0.0001539,2]
[322980070,1713556806784,614.77,0.00015235,2]
[322980071,1713556845049,88.81564294,0.00013261,2]
[322980072,1713556845076,910.22435706,0.00013261,2]
[322980078,1713557312980,482.7589,0.00014967,2]
[322980079,1713557343139,949.08,0.00013082,2]
[322980083,1713557360480,600.0,0.00014962,2]
[322980119,1713557431565,-844.00971584,0.00015013,2]
[322980120,1713557431577,-123.18071554,0.00015013,2]
[322980121,1713557431586,-734.98319399,0.00015013,2]
[322980122,1713557431597,-2441.12603703,0.00015013,2]
[322980123,1713557431607,-250.0,0.00015014,2]
[322980124,1713557431616,-6655.42335015,0.00015014,2]
[322980125,1713557431666,-15367.23905135,0.00015014,2]
[322980126,1713557431677,-858.85640371,0.00015014,2]
[322980127,1713557431688,-332.48435084,0.00015014,2]
[322980165,1713557437690,-520.76,0.00015014,2]
[322980166,1713557437745,-165.23684395,0.00015014,2]
[322980167,1713557437754,-178.51,0.00015026,2]
[322980168,1713557437763,-180.73,0.00015056,2]
[322980169,1713557437772,-704.2,0.00015067,2]
[322980170,1713557437781,-400.0,0.00015142,2]
[322980171,1713557437791,-609.0,0.00015316,2]
[322980172,1713557437800,-280.0,0.00015316,2]
[322980173,1713557437810,-190.654,0.00015316,2]
[322980174,1713557437819,-399.0,0.00015316,2]
[322980175,1713557437827,-2442.0,0.00015316,2]
[322980176,1713557437837,-3079.0,0.00015316,2]
[322980177,1713557437846,-211.39,0.00015316,2]
[322980178,1713557437855,-1473.0,0.00015316,2]
[322980179,1713557437865,-1639.0,0.00015316,2]
[322980180,1713557437874,-152.166,0.00015316,2]
[322980181,1713557437884,-214.0,0.00015316,2]
[322980182,1713557437893,-355.0,0.00015316,2]
[322980183,1713557437903,-443.0,0.00015316,2]
[322980184,1713557437912,-1140.0,0.00015316,2]
[322980185,1713557437921,-949.08,0.00015346,2]
[322980186,1713557437931,-204.61,0.00015376,2]
[322980187,1713557437940,-155.0,0.000155,2]
[322980188,1713557437952,-150.0,0.000155,2]
[322980189,1713557437962,-499.99,0.00015501,2]
[322980190,1713557437971,-9788.67311809,0.00015527,2]
[322980191,1713557437981,-10089.02728076,0.00015527,2]
[322980192,1713557437990,-150.99,0.00015527,2]
[322980193,1713557438000,-1078.0,0.00015617,2]
[322980194,1713557438009,-8757.24,0.000157,2]
[322980195,1713557438019,-2474.0,0.000157,2]
[322980196,1713557438028,-5778.18163118,0.0001578,2]
[322980197,1713557438037,-167.71,0.00015831,2]
[322980198,1713557438047,-150.28,0.00015869,2]
[322980199,1713557438056,-191.14508613,0.00015877,2]
[322980200,1713557438067,-345.97965257,0.00015878,2]
[322980201,1713557438076,-171809.79302755,0.00015879,2]
[322980202,1713557438088,-1083.50213176,0.00015879,2]
[322980203,1713557438100,-6128.0,0.00015879,2]
[322980204,1713557438111,-285.70748418,0.00015879,2]
[322980205,1713557438124,-494.72760592,0.00015879,2]
[322980206,1713557438158,-421.399227,0.00015879,2]
[322980211,1713557439806,-976.68977929,0.00015879,2]
[322980212,1713557439818,-45649.28707285,0.00015879,2]
[322980213,1713557439842,-322263.83498264,0.00015879,2]
[322980214,1713557439854,-136252.26361546,0.00015879,2]
[322980215,1713557439863,-85832.92925128,0.0001588,2]
[322980216,1713557439874,-341.61632384,0.0001588,2]
[322980218,1713557439900,-2492.2495,0.0001588,2]
[322980221,1713557439911,-311.184,0.0001588,2]
[322980223,1713557439923,-433.48345499,0.0001588,2]
[322980226,1713557439947,-563.96311532,0.0001588,2]
[322980303,1713557445661,-1059.92059232,0.00015879,2]
[322980304,1713557445670,-188.64805792,0.00015879,2]
[322980305,1713557445681,-445.62263815,0.00015879,2]
[322980306,1713557445691,-894.44984093,0.0001588,2]
[322980307,1713557445700,-164.97602222,0.000159,2]
[322980308,1713557445709,-174.8907782,0.000159,2]
[322980309,1713557445718,-150.28,0.0001599,2]
[322980310,1713557445727,-150.28,0.0001599,2]
[322980311,1713557445736,-74.8007205,0.00016,2]
[322980312,1713557445747,-12528.06297922,0.00016,2]
[322980313,1713557445756,-155.0,0.00016,2]
[322980314,1713557445766,-88791.31863201,0.00016,2]
[322980315,1713557445829,-35668.15628408,0.00016,2]
[322980316,1713557445841,-14970.16065043,0.00016,2]
[322980317,1713557445852,-352.7727058,0.00016,2]
[322980318,1713557445862,-295.12565298,0.00016,2]
[322980319,1713557445885,-199042.086976,0.00016,2]
[322980320,1713557445897,-1742.91274893,0.00016,2]
[322980321,1713557445909,-335.25000385,0.00016,2]
[322980322,1713557445933,-3855.81349037,0.00016,2]
[322980324,1713557689407,967.19043138,0.00014998,2]
[322980325,1713557821257,5123.55588018,0.00014982,2]
[322980326,1713557880923,680.42684284,0.00012993,2]
[322980327,1713557880950,228.55315716,0.00012993,2]
[322980328,1713558186531,240.88,0.0001479,2]
[322980330,1713558211820,250.0,0.0001479,2]
[322980351,1713558631754,-784.5,0.00012953,2]
[322980352,1713558631928,-1574.36672188,0.00012953,2]
[322980353,1713558631937,-967.19043138,0.00012953,2]
[322980354,1713558631947,-863.53,0.00012954,2]
[322980355,1713558631956,-1431.08643829,0.00014,2]
[322980356,1713558631966,-300.0,0.00014816,2]
[322980357,1713558631975,-842.57224511,0.00014817,2]
[322980358,1713558631984,-842.57224511,0.00014817,2]
[322980359,1713558631993,-688.45,0.00014818,2]
[322980360,1713558632003,-3052.61,0.00014832,2]
[322980361,1713558632012,-480.0,0.00014862,2]
[322980362,1713558632021,-23900.0,0.00014893,2]
[322980363,1713558632032,-520.0,0.00014937,2]
[322980364,1713558632041,-1250.0,0.00015,2]
[322980365,1713558632050,-176.25,0.00015052,2]
[322980366,1713558632061,-499.99,0.00015052,2]
[322980367,1713558632070,-150.99,0.00015052,2]
[322980368,1713558632079,-863.53,0.00015218,2]
[322980369,1713558632089,-162.5,0.00015307,2]
[322980370,1713558632100,-376.957257,0.00015342,2]
[322980371,1713558632110,-205.89797358,0.00015382,2]
[322980372,1713558632119,-3079.0,0.00015392,2]
[322980373,1713558632129,-2442.0,0.00015392,2]
[322980374,1713558632139,-399.0,0.00015392,2]
[322980375,1713558632148,-1473.0,0.00015392,2]
[322980376,1713558632157,-150.0,0.00015392,2]
[322980377,1713558632167,-214.0,0.00015392,2]
[322980378,1713558632176,-1639.0,0.00015392,2]
[322980379,1713558632186,-355.0,0.00015392,2]
[322980380,1713558632195,-443.0,0.00015392,2]
[322980381,1713558632205,-1140.0,0.00015392,2]
[322980382,1713558632215,-1737.0,0.00015392,2]
[322980384,1713558632224,-5721.0,0.00015392,2]
[322980386,1713558632233,-5885.0,0.00015392,2]
[322980388,1713558632242,-37381.942,0.00015392,2]
[322980390,1713558632251,-1054.0,0.00015392,2]
[322980392,1713558632261,-150.0,0.000155,2]
[322980394,1713558632270,-1002.59863153,0.0001568,2]
[322980396,1713558632279,-1115.06035874,0.0001568,2]
[322980397,1713558632289,-1113.92079957,0.0001568,2]
[322980398,1713558632298,-2563.0,0.000157,2]
[322980399,1713558632307,-681.9782,0.00015779,2]
[322980400,1713558632316,-263.8086,0.00015799,2]
[322980401,1713558632325,-166.55,0.0001581,2]
[322980402,1713558632335,-167.0,0.00015831,2]
[322980403,1713558632345,-2500.0,0.0001589,2]
[322980404,1713558632354,-500.0,0.00015899,2]
[322980405,1713558632365,-47429.0976,0.00015899,2]
[322980406,1713558632374,-3336.1821,0.00015899,2]
[322980407,1713558632383,-21345.2291,0.00015899,2]
[322980408,1713558632394,-1000.0,0.00015899,2]
[322980409,1713558632403,-16420.3913,0.00015899,2]
[322980410,1713558632412,-5055.9089273,0.00015899,2]
[322980411,1713558632725,-6446.70857531,0.000159,2]
[322980412,1713558632741,-170.63737638,0.000159,2]
[322980413,1713558632750,-166.77659482,0.000159,2]
[322980414,1713558632759,-150.61,0.0001599,2]
[322980415,1713558632769,-150.61,0.0001599,2]
[322980416,1713558632779,-161.697617,0.00015998,2]
[322980417,1713558632788,-263.17762148,0.00015998,2]
[322980418,1713558632797,-3692.50343558,0.00015998,2]
[322980419,1713558632806,-10000.0,0.00015998,2]
[322980420,1713558632815,-4801.64796486,0.00015998,2]
[322980421,1713558632827,-319.18204717,0.00015998,2]
[322980435,1713558637834,-385.38170658,0.00015998,2]
[322980436,1713558637874,-4493.78828139,0.00015998,2]
[322980437,1713558637883,-373236.78121911,0.00015999,2]
[322980438,1713558637893,-10000.0,0.00015999,2]
[322980439,1713558637902,-10000.0,0.00015999,2]
[322980440,1713558637911,-10000.0,0.00015999,2]
[322980441,1713558637921,-10000.0,0.00015999,2]
[322980442,1713558637930,-10000.0,0.00015999,2]
[322980443,1713558637939,-272704.67562599,0.00016,2]
[322980444,1713558638074,-1624.20869898,0.00016,2]
[322980445,1713558638114,-19778.08680853,0.00016,2]
[322980448,1713558641413,-989.90938697,0.00015997,2]
[322980449,1713558641422,-588.807602,0.00016,2]
[322980450,1713558641435,-611765.70941844,0.00016,2]
[322980451,1713558641474,-596.12154197,0.00016,2]
[322980452,1713558641487,-7195.37450936,0.00016,2]
[322980453,1713558641498,-1889.5215,0.00016,2]
[322980454,1713558641584,-197376.61410839,0.00016,2]
[322980455,1713558641595,-373.832081,0.00016,2]
[322980456,1713558641744,-953.56826015,0.00016,2]
[322980457,1713558641758,-203304.75032424,0.00016,2]
[322980458,1713558641768,-12602.86369972,0.00016,2]
[322980459,1713558641777,-301.71993979,0.00016,2]
[322980460,1713558641788,-150.0,0.00016,2]
[322980461,1713558641797,-3000.0,0.00016,2]
[322980462,1713558641807,-151.22,0.00016098,2]
[322980463,1713558641816,-5055.90892726,0.00016157,2]
[322980464,1713558641825,-376.957257,0.00016164,2]
[322980465,1713558641835,-200.0,0.00016185,2]
[322980466,1713558641845,-8000.0,0.000162,2]
[322980467,1713558641855,-3000.02,0.000162,2]
[322980468,1713558641863,-3466.90168038,0.00016202,2]
[322980469,1713558641872,-8000.0,0.0001621,2]
[322980470,1713558641883,-150.61,0.0001621,2]
[322980471,1713558641891,-7699.62,0.0001622,2]
[322980472,1713558641901,-6446.7085753,0.00016239,2]
[322980474,1713558641910,-165.93,0.00016271,2]
[322980475,1713558641919,-200.0,0.00016289,2]
[322980476,1713558641930,-1000.0,0.00016289,2]
[322980477,1713558641941,-500.0,0.00016289,2]
[322980478,1713558641954,-200.0,0.00016289,2]
[322980479,1713558641963,-1516.65341091,0.00016305,2]
[322980480,1713558641973,-895.0,0.0001632,2]
[322980481,1713558641983,-10000.0,0.00016335,2]
[322980482,1713558641992,-10000.0,0.00016335,2]
[322980483,1713558642002,-174.8907782,0.00016338,2]
[322980484,1713558642011,-2860.53660342,0.00016338,2]
[322980485,1713558642021,-185.08224941,0.00016338,2]
[322980486,1713558642031,-10000.0,0.00016338,2]
[322980487,1713558642041,-5055.90892726,0.00016416,2]
[322980488,1713558642052,-210.40439846,0.00016435,2]
[322980489,1713558642099,-155.0,0.00016436,2]
[322980490,1713558642109,-263.37779648,0.00016437,2]
[322980491,1713558642118,-148430.5084201,0.00016437,2]
[322980492,1713558642127,-10000.0,0.00016437,2]
[322980493,1713558642136,-10000.0,0.00016437,2]
[322980494,1713558642146,-10000.0,0.00016437,2]
[322980495,1713558642155,-10000.0,0.00016437,2]
[322980496,1713558642165,-498.293292,0.00016438,2]
[322980497,1713558642175,-807.62,0.00016438,2]
[322980498,1713558642184,-1141.76,0.00016438,2]
[322980499,1713558642194,-500.0,0.00016438,2]
[322980500,1713558642205,-500.0,0.00016438,2]
[322980501,1713558642214,-788.48,0.00016438,2]
[322980502,1713558642225,-500.0,0.00016438,2]
[322980503,1713558642235,-500.0,0.00016438,2]
[322980504,1713558642246,-778.32,0.00016438,2]
[322980505,1713558642256,-500.0,0.00016438,2]
[322980506,1713558642266,-500.0,0.00016438,2]
[322980507,1713558642276,-500.0,0.00016438,2]
[322980508,1713558642285,-500.0,0.00016438,2]
[322980509,1713558642295,-564.5,0.00016438,2]
[322980510,1713558642305,-500.0,0.00016438,2]
[322980511,1713558642314,-500.0,0.00016438,2]
[322980512,1713558642324,-529.47,0.00016438,2]
[322980513,1713558642334,-500.0,0.00016438,2]
[322980514,1713558642344,-1055.1,0.00016438,2]
[322980515,1713558642355,-500.0,0.00016438,2]
[322980516,1713558642364,-361.19354795,0.00016438,2]
[322980517,1713558642374,-679.03,0.00016438,2]
[322980518,1713558642383,-1326.64,0.00016438,2]
[322980519,1713558642392,-500.0,0.00016438,2]
[322980520,1713558642401,-500.0,0.00016438,2]
[322980521,1713558642411,-500.0,0.00016438,2]
[322980522,1713558642420,-516.81229608,0.00016438,2]
[322980523,1713558642429,-500.0,0.00016438,2]
[322980524,1713558642438,-500.0,0.00016438,2]
[322980525,1713558642447,-500.0,0.00016438,2]
[322980526,1713558642456,-500.0,0.00016438,2]
[322980527,1713558642465,-500.0,0.00016438,2]
[322980528,1713558642474,-938.7,0.00016438,2]
[322980530,1713558642483,-500.0,0.00016438,2]
[322980532,1713558642492,-500.0,0.00016438,2]
[322980534,1713558642501,-500.0,0.00016438,2]
[322980535,1713558642511,-500.0,0.00016438,2]
[322980536,1713558642520,-500.0,0.00016438,2]
[322980537,1713558642530,-500.0,0.00016438,2]
[322980538,1713558642539,-500.0,0.00016438,2]
[322980539,1713558642548,-500.0,0.00016438,2]
[322980540,1713558642557,-500.0,0.00016438,2]
[322980542,1713558642567,-500.0,0.00016438,2]
[322980544,1713558642575,-1037.76,0.00016438,2]
[322980546,1713558642585,-608.78,0.00016438,2]
[322980548,1713558642594,-689.85,0.00016438,2]
[322980550,1713558642602,-500.0,0.00016438,2]
[322980551,1713558642612,-500.0,0.00016438,2]
[322980553,1713558642621,-845.15,0.00016438,2]
[322980555,1713558642631,-862.93,0.00016438,2]
[322980557,1713558642640,-577.3,0.00016438,2]
[322980559,1713558642649,-500.0,0.00016438,2]
[322980561,1713558642658,-500.0,0.00016438,2]
[322980563,1713558642667,-500.0,0.00016438,2]
[322980566,1713558642675,-534.82,0.00016438,2]
[322980568,1713558642684,-845.87,0.00016438,2]
[322980570,1713558642694,-500.0,0.00016438,2]
[322980572,1713558642703,-500.0,0.00016438,2]
[322980574,1713558642715,-500.0,0.00016438,2]
[322980576,1713558642724,-500.0,0.00016438,2]
[322980578,1713558642734,-529.12,0.00016438,2]
[322980580,1713558642742,-500.0,0.00016438,2]
[322980582,1713558642754,-500.0,0.00016438,2]
[322980583,1713558642763,-305.92167912,0.00016438,2]
[322980585,1713558642772,-500.0,0.00016438,2]
[322980586,1713558642782,-500.0,0.00016438,2]
[322980587,1713558643014,-531.52,0.00016438,2]
[322980588,1713558643084,-500.0,0.00016438,2]